bitfinex/quotes_BTCUSD_20241111
["timestamp","ask_amount","ask_price","bid_price","bid_amount"]
[1731368531515,0.00763816,88422.0,88418.0,0.0444]
[1731368531728,0.16963816,88441.0,88419.0,0.11422305]
[1731368531729,0.16963816,88427.0,88419.0,0.11422305]
[1731368531885,0.16963816,88441.0,88419.0,0.11422305]
[1731368532089,0.16963816,88429.0,88419.0,0.11422305]
[1731368532293,0.00763816,88429.0,88419.0,0.11422305]
[1731368532512,0.16963816,88428.0,88419.0,0.11422305]
[1731368532935,0.00763816,88428.0,88419.0,0.11422305]
[1731368533644,0.19267538,88434.0,88419.0,0.11422305]
[1731368533801,0.16963816,88431.0,88419.0,0.11422305]
[1731368533955,0.16963816,88441.0,88419.0,0.11422305]
[1731368534168,0.005,88444.0,88419.0,0.11422305]
[1731368534169,0.16963816,88440.0,88419.0,0.11422305]
[1731368534610,0.16963816,88440.0,88420.0,0.0022613]
[1731368534854,0.16963816,88439.0,88420.0,0.11648435]
[1731368535095,0.16963816,88439.0,88420.0,0.11422305]
[1731368537224,0.17310056,88450.0,88420.0,0.11422305]
[1731368537225,0.17310056,88450.0,88421.0,0.16963816]
[1731368537445,0.16963816,88441.0,88422.0,0.11648419]
[1731368537889,0.0017088,88439.0,88422.0,0.11648419]
[1731368538311,0.16963816,88432.0,88422.0,0.11422305]
[1731368538526,0.0017088,88439.0,88422.0,0.11422305]
[1731368538747,0.16544888,88441.0,88422.0,0.11422305]
[1731368538975,0.005,88437.0,88422.0,0.11422305]
[1731368539387,0.005,88436.0,88422.0,0.11422305]
[1731368540203,0.004412,88436.0,88422.0,0.11422305]
[1731368540636,0.005,88438.0,88410.0,0.16963816]
[1731368540637,0.004412,88432.0,88410.0,0.16963816]
[1731368540837,0.004412,88432.0,88411.0,0.11422305]
[1731368541053,0.16963816,88431.0,88411.0,0.11422305]
[1731368543730,0.005,88438.0,88412.0,0.17189971]
[1731368543946,0.16544888,88441.0,88413.0,0.11422305]
[1731368544149,0.16544888,88441.0,88415.0,0.11422305]
[1731368544361,0.16544888,88441.0,88416.0,0.00226127]
[1731368544584,0.16963816,88432.0,88420.0,0.11422305]
[1731368545265,0.004412,88433.0,88421.0,0.0334572]
[1731368545478,0.16963816,88432.0,88422.0,0.11422305]
[1731368545897,0.005,88438.0,88422.0,0.11422305]
[1731368546109,0.16963816,88432.0,88423.0,0.00226152]
[1731368546351,0.16963816,88432.0,88424.0,0.11422305]
[1731368546552,0.004412,88426.0,88404.0,0.0008544]
[1731368546757,0.004412,88422.0,88412.0,0.16963816]
[1731368546955,0.04791828,88427.0,88412.0,0.11422305]
[1731368547395,0.03716161,88427.0,88412.0,0.11422305]
[1731368547521,0.02666597,88427.0,88412.0,0.11422305]
[1731368547968,0.02666597,88427.0,88412.0,0.11455803]
[1731368548393,0.01887274,88427.0,88412.0,0.11455803]
[1731368548753,0.005,88418.0,88412.0,0.00033498]
[1731368549201,0.005,88415.0,88412.0,0.00033498]
[1731368551082,0.005,88415.0,88413.0,0.16963816]
[1731368551210,0.005,88415.0,88412.0,0.00033498]
[1731368551891,0.005,88409.0,88404.0,0.0008544]
[1731368552058,0.0869,88381.0,88380.0,0.16963816]
[1731368552411,0.005,88372.0,88371.0,0.16963816]
[1731368552606,0.16622305,88372.0,88371.0,0.16963816]
[1731368552807,0.005,88361.0,88343.0,0.16963816]
[1731368553047,0.005,88358.0,88352.0,0.16963816]
[1731368553274,0.005,88358.0,88343.0,0.16963816]
[1731368553522,0.005,88358.0,88339.0,0.004518]
[1731368553965,0.16963816,88353.0,88339.0,0.004518]
[1731368554168,0.005,88348.0,88332.0,0.16963816]
[1731368554368,0.005,88348.0,88333.0,0.00226378]
[1731368554540,0.005,88361.0,88347.0,0.11507665]
[1731368554779,0.16963816,88358.0,88348.0,0.11422305]
[1731368554987,0.17463816,88358.0,88348.0,0.11422305]
[1731368555114,0.005,88357.0,88348.0,0.11422305]
[1731368555533,0.005,88365.0,88348.0,0.11422305]
[1731368555738,0.17463816,88362.0,88349.0,0.0022634]
[1731368555944,0.17463816,88362.0,88350.0,0.11422305]
[1731368557382,0.005,88362.0,88350.0,0.11422305]
[1731368557585,0.005,88362.0,88351.0,0.00226335]
[1731368557860,0.005,88364.0,88351.0,0.1164864]
[1731368558070,0.16963816,88371.0,88352.0,0.11422305]
[1731368558307,0.16963816,88371.0,88353.0,0.00226317]
[1731368558535,0.005,88370.0,88354.0,0.11422305]
[1731368558740,0.16963816,88362.0,88347.0,0.0008536]
[1731368558945,0.005,88365.0,88348.0,0.11422305]
[1731368559159,0.16963816,88361.0,88348.0,0.11422305]
[1731368559559,0.005,88365.0,88348.0,0.11418305]
[1731368559801,0.16963816,88362.0,88348.0,0.11418305]
[1731368560961,0.1590549,88362.0,88348.0,0.11418305]
[1731368561169,0.14794147,88362.0,88348.0,0.11418305]
[1731368561620,0.16639341,88371.0,88348.0,0.17019274]
[1731368561816,0.16639341,88371.0,88351.0,0.06173747]
[1731368562040,0.15511125,88371.0,88352.0,0.11422305]
[1731368562251,0.14493834,88371.0,88352.0,0.11422305]
[1731368563234,0.16963816,88362.0,88352.0,0.11422305]
[1731368563449,0.14493834,88371.0,88349.0,0.0008544]
[1731368563672,0.14493834,88371.0,88349.0,0.11507745]
[1731368563902,0.14493834,88371.0,88349.0,0.0008544]
[1731368563903,0.19267538,88351.0,88349.0,0.0008544]
[1731368564570,0.21843816,88350.0,88349.0,0.0008544]
[1731368564777,0.0488,88350.0,88349.0,0.0008544]
[1731368565469,0.24147538,88350.0,88349.0,0.0008544]
[1731368565671,0.35569843,88350.0,88349.0,0.0008544]
[1731368565845,0.35569843,88350.0,88347.0,0.0008536]
[1731368566055,0.11422305,88349.0,88347.0,0.0008536]
[1731368567724,0.19267538,88348.0,88347.0,0.0008536]
[1731368567868,0.30689843,88348.0,88347.0,0.0008536]
[1731368568094,0.005,88342.0,88331.0,0.0008544]
[1731368568258,0.04884,88350.0,88331.0,0.0008544]
[1731368568259,0.19267538,88332.0,88331.0,0.0008544]
[1731368568486,0.43659843,88332.0,88331.0,0.0008544]
[1731368568906,0.24392305,88332.0,88331.0,0.0008544]
[1731368571654,0.24396305,88332.0,88331.0,0.0008544]
[1731368571924,0.24896305,88332.0,88331.0,0.0008544]
[1731368572129,0.24396305,88332.0,88331.0,0.0008544]
[1731368573016,0.24396305,88332.0,88331.0,0.0008144]
[1731368573666,0.12974,88332.0,88331.0,0.0008144]
[1731368574093,4e-05,88332.0,88331.0,0.0008144]
[1731368574279,4e-05,88332.0,88331.0,0.0007744]
[1731368574470,0.19267538,88336.0,88331.0,0.00585461]
[1731368574701,0.19267538,88345.0,88331.0,0.0007744]
[1731368574902,0.16963816,88343.0,88331.0,0.0007744]
[1731368575107,4e-05,88350.0,88332.0,0.1164872]
[1731368575419,0.16963816,88348.0,88333.0,0.06148415]
[1731368575718,0.00175,88350.0,88342.0,0.05663645]
[1731368575938,0.16963816,88348.0,88347.0,0.06183004]
[1731368576071,0.00763816,88348.0,88347.0,0.17105309]
[1731368576274,0.00175,88350.0,88347.0,0.1760633]
[1731368576479,0.00175,88350.0,88348.0,0.11422305]
[1731368576706,0.0796,88376.0,88349.0,0.05678861]
[1731368576922,0.0796,88376.0,88350.0,0.11422305]
[1731368576923,0.16963816,88353.0,88350.0,0.11422305]
[1731368577235,0.19267538,88353.0,88324.0,0.16963816]
[1731368577377,0.19267538,88353.0,88335.0,0.16963816]
[1731368577577,0.19267538,88353.0,88324.0,0.22573747]
[1731368577578,0.16963816,88350.0,88336.0,0.00493706]
[1731368577858,0.16963816,88350.0,88324.0,0.05609931]
[1731368578059,0.19267538,88353.0,88324.0,0.05609931]
[1731368578284,0.1658339,88351.0,88324.0,0.05609931]
[1731368578429,0.1658339,88351.0,88320.0,0.05688407]
[1731368578644,0.1658339,88351.0,88316.0,0.0569381]
[1731368579585,0.0801,88350.0,88316.0,0.0569381]
[1731368581019,0.19267538,88342.0,88316.0,0.16963816]
[1731368581396,0.16963816,88341.0,88316.0,0.16963816]
[1731368581599,0.11422305,88340.0,88315.0,0.0008545]
[1731368581854,0.19267538,88337.0,88315.0,0.0008545]
[1731368582048,0.19267538,88337.0,88336.0,0.16963816]
[1731368582237,0.19267538,88346.0,88315.0,0.17049266]
[1731368582441,0.0801,88350.0,88326.0,0.002264]
[1731368582602,0.16963816,88344.0,88315.0,0.17049266]
[1731368583649,4e-05,88362.0,88333.0,0.16963816]
[1731368583837,0.16963816,88352.0,88334.0,0.11422305]
[1731368584040,0.15616877,88352.0,88334.0,0.11422305]
[1731368584449,0.14870081,88352.0,88335.0,0.00226357]
[1731368584660,0.00763816,88351.0,88336.0,0.11422305]
[1731368584791,0.16963816,88361.0,88336.0,0.11422305]
[1731368584997,0.00763816,88352.0,88336.0,0.11422305]
[1731368585421,0.16963816,88351.0,88336.0,0.11422305]
[1731368585797,0.19267538,88344.0,88321.0,0.05608304]
[1731368586004,2.6,88350.0,88334.0,0.16963816]
[1731368586171,2.6,88350.0,88325.0,0.17310056]
[1731368586172,0.16963816,88348.0,88335.0,0.11648677]
[1731368586412,0.16963816,88349.0,88335.0,0.11648677]
[1731368586611,0.16963816,88349.0,88335.0,0.11422305]
[1731368586839,0.16963816,88350.0,88336.0,0.16963816]
[1731368587120,0.16963816,88350.0,88337.0,0.12144881]
[1731368587343,0.16963816,88350.0,88349.0,0.18101166]
[1731368587344,0.12216601,88350.0,88349.0,0.18101166]
[1731368587526,0.16229745,88362.0,88350.0,0.05670956]
[1731368588414,0.16229745,88362.0,88330.0,0.005]
[1731368588415,0.16229745,88362.0,88332.0,0.05617749]
[1731368588603,0.16229745,88362.0,88339.0,0.16963816]
[1731368588834,0.16963816,88352.0,88340.0,0.11422305]
[1731368589050,0.16229745,88362.0,88340.0,0.11422305]
[1731368589459,0.125,88361.0,88340.0,0.11422305]
[1731368590191,0.16963816,88360.0,88341.0,0.0022636]
[1731368590400,0.16963816,88360.0,88342.0,0.11422305]
[1731368590639,0.16963816,88360.0,88343.0,0.00226346]
[1731368590855,0.16963816,88360.0,88344.0,0.11422305]
[1731368591021,0.14543834,88371.0,88345.0,0.00226346]
[1731368591222,0.16963816,88362.0,88346.0,0.11422305]
[1731368592845,0.16963816,88361.0,88347.0,0.0022634]
[1731368593045,0.14543834,88371.0,88342.0,0.05663645]
[1731368593046,0.14543834,88371.0,88348.0,0.11422305]
[1731368593271,0.16963816,88362.0,88349.0,0.00226338]
[1731368593483,0.14543834,88371.0,88350.0,0.11422305]
[1731368593705,0.16963816,88362.0,88351.0,0.00226337]
[1731368593959,0.19267538,88365.0,88335.0,0.16963816]
[1731368594163,0.16963816,88362.0,88335.0,0.16963816]
[1731368594377,0.16963816,88362.0,88336.0,0.16963816]
[1731368594628,0.19267538,88355.0,88331.0,0.0007744]
[1731368594835,0.0798,88350.0,88331.0,0.0007744]
[1731368595957,0.0798,88350.0,88331.0,0.11499745]
[1731368596222,0.1307,88335.0,88331.0,0.0007744]
[1731368596444,0.005,88331.0,88325.0,0.0034624]
[1731368596660,0.19267538,88326.0,88325.0,0.0034624]
[1731368596874,0.30689843,88326.0,88325.0,0.0034624]
[1731368598061,0.005,88325.0,88323.0,0.0008544]
[1731368598264,0.002,88308.0,88287.0,0.16963816]
[1731368598458,0.31575105,88324.0,88287.0,0.16963816]
[1731368598459,0.007,88299.0,88298.0,0.16963816]
[1731368598663,0.002,88296.0,88287.0,0.16963816]
[1731368598831,0.19267538,88290.0,88268.0,0.16963816]
[1731368599033,0.11422305,88295.0,88268.0,0.16963816]
[1731368599242,0.19267538,88291.0,88268.0,0.16963816]
[1731368600296,0.682,88297.0,88269.0,0.16963816]
[1731368600496,0.19267538,88294.0,88269.0,0.16963816]
[1731368601754,0.11422305,88293.0,88269.0,0.16963816]
[1731368602438,0.11422305,88293.0,88289.0,0.00368577]
[1731368602856,0.1,88291.0,88289.0,0.00368577]
[1731368603068,0.1,88291.0,88290.0,0.16963816]
[1731368603234,0.1,88291.0,88289.0,0.00368577]
[1731368604968,0.41066121,88290.0,88289.0,0.00368577]
[1731368605173,0.24102305,88290.0,88289.0,0.00368577]
[1731368605345,0.1,88291.0,88289.0,0.00368577]
[1731368607210,0.29643816,88290.0,88289.0,0.00368577]
[1731368607521,0.1268,88290.0,88289.0,0.00368577]
[1731368607653,0.005,88282.0,88263.0,0.16963816]
[1731368607828,0.19267538,88264.0,88263.0,0.16963816]
[1731368608203,0.0785,88263.0,88262.0,0.0008544]
[1731368608873,0.19272305,88263.0,88262.0,0.0008544]
[1731368609068,0.0785,88263.0,88262.0,0.0008544]
[1731368609515,0.19272305,88263.0,88262.0,0.0008544]
[1731368609757,0.0785,88263.0,88262.0,0.0008544]
[1731368609960,0.0771,88275.0,88262.0,0.0008544]
[1731368610310,0.24673816,88275.0,88262.0,0.0053774]
[1731368610684,0.24673816,88275.0,88262.0,0.0008544]
[1731368611123,0.0771,88275.0,88263.0,0.11422305]
[1731368611754,0.16963816,88264.0,88262.0,0.0008544]
[1731368611967,0.16963816,88274.0,88262.0,0.0008544]
[1731368612237,0.048,88282.0,88263.0,0.11648888]
[1731368612459,0.16963816,88279.0,88263.0,0.11874505]
[1731368612690,0.0809,88288.0,88263.0,0.11874505]
[1731368612910,0.16963816,88280.0,88267.0,0.11922305]
[1731368613361,0.1,88291.0,88266.0,0.05610821]
[1731368613362,0.1,88291.0,88268.0,0.11422305]
[1731368614277,0.1,88291.0,88286.0,0.05659146]
[1731368614278,0.09326091,88291.0,88286.0,0.05659146]
[1731368614495,0.08480713,88291.0,88286.0,0.05659146]
[1731368614727,0.08480713,88291.0,88284.0,0.05649528]
[1731368614951,0.08480713,88291.0,88271.0,0.05653725]
[1731368615161,0.08186663,88291.0,88278.0,0.05685406]
[1731368615395,0.08186663,88291.0,88290.0,0.17589293]
[1731368615602,0.08186663,88291.0,88290.0,0.17089293]
[1731368616227,0.08186663,88291.0,88267.0,0.005]
[1731368616228,0.0809,88290.0,88267.0,0.005]
[1731368616435,0.08186663,88291.0,88273.0,0.005]
[1731368616655,0.16963816,88290.0,88274.0,0.11648811]
[1731368616862,0.16963816,88290.0,88274.0,0.11422305]
[1731368617336,0.08186663,88291.0,88274.0,0.11422305]
[1731368617548,0.16963816,88290.0,88275.0,0.00226529]
[1731368617756,0.16963816,88290.0,88276.0,0.11422305]
[1731368618176,0.08186663,88291.0,88277.0,0.00226523]
[1731368618177,0.16963816,88289.0,88277.0,0.00226523]
[1731368618387,0.16963816,88289.0,88278.0,0.11422305]
[1731368618844,0.08186663,88291.0,88278.0,0.11422305]
[1731368619064,0.16963816,88290.0,88278.0,0.11422305]
[1731368619468,0.08186663,88291.0,88278.0,0.11422305]
[1731368620210,0.08186663,88291.0,88279.0,0.00226522]
[1731368620416,0.08186663,88291.0,88280.0,0.11422305]
[1731368620623,0.16963816,88287.0,88264.0,0.0564005]
[1731368620866,0.08186663,88291.0,88265.0,0.28386121]
[1731368621064,0.16963816,88288.0,88266.0,0.05610821]
[1731368621264,0.16963816,88288.0,88267.0,0.17102369]
[1731368621508,0.16963816,88288.0,88267.0,0.11422305]
[1731368621746,0.08186663,88291.0,88268.0,0.0022653]
[1731368621936,0.16963816,88287.0,88269.0,0.11422305]
[1731368622148,0.16963816,88287.0,88270.0,0.00226531]
[1731368622393,0.16963816,88287.0,88265.0,0.05674439]
[1731368622394,0.16963816,88287.0,88271.0,0.11422305]
[1731368623852,0.16963816,88287.0,88262.0,0.0008544]
[1731368623977,0.16963816,88287.0,88264.0,0.11422305]
[1731368624177,0.0017092,88289.0,88264.0,0.17062355]
[1731368624439,0.16963816,88287.0,88264.0,0.17062355]
[1731368624638,0.0017092,88289.0,88265.0,0.16963816]
[1731368624784,0.0017092,88289.0,88266.0,0.11422305]
[1731368625226,0.16963816,88281.0,88266.0,0.11422305]
[1731368625854,0.0017092,88289.0,88271.0,0.11922305]
[1731368626056,0.16963816,88283.0,88271.0,0.11422305]
[1731368626663,0.16963816,88283.0,88264.0,0.0564005]
[1731368626867,0.15606626,88283.0,88266.0,0.05610821]
[1731368627071,0.15606626,88283.0,88267.0,0.11422305]
[1731368627851,0.0829,88282.0,88267.0,0.11422305]
[1731368628144,0.0466,88281.0,88263.0,0.004522]
[1731368628307,0.0466,88281.0,88264.0,0.11422305]
[1731368628511,0.16963816,88271.0,88263.0,0.004522]
[1731368628717,0.19267538,88278.0,88263.0,0.004522]
[1731368628916,0.16963816,88274.0,88263.0,0.004522]
[1731368629888,0.19267538,88269.0,88262.0,0.0008544]
[1731368630089,0.19767538,88279.0,88262.0,0.0008544]
[1731368630235,0.16963816,88275.0,88262.0,0.0008544]
[1731368630664,0.08186663,88291.0,88263.0,0.17190422]
[1731368630885,0.16963816,88280.0,88264.0,0.11422305]
[1731368631029,0.16963816,88280.0,88265.0,0.00226548]
[1731368631292,0.08186663,88291.0,88270.0,0.005]
[1731368631489,0.08186663,88291.0,88281.0,0.005]
[1731368631689,0.08186663,88291.0,88283.0,0.05607829]
[1731368631899,0.08186663,88291.0,88285.0,0.05625881]
[1731368632097,0.08186663,88291.0,88286.0,0.11648805]
[1731368632322,0.08186663,88291.0,88290.0,0.01]
[1731368632550,0.16963816,88303.0,88302.0,0.01]
[1731368632755,0.16963816,88303.0,88302.0,0.11422305]
[1731368633255,0.16963816,88312.0,88302.0,0.11422305]
[1731368633456,0.16963816,88311.0,88304.0,0.0563884]
[1731368633786,0.16963816,88311.0,88306.0,0.0563888]
[1731368633999,0.16963816,88311.0,88307.0,0.11648754]
[1731368634158,0.16963816,88309.0,88308.0,0.05659747]
[1731368634391,0.16963816,88309.0,88284.0,0.02273881]
[1731368634392,0.082,88318.0,88288.0,0.05624756]
[1731368634568,0.16963816,88313.0,88308.0,0.11422305]
[1731368634797,0.16963816,88313.0,88297.0,0.05612118]
[1731368635000,0.0469,88306.0,88275.0,0.05672236]
[1731368635205,0.0469,88306.0,88285.0,0.16963816]
[1731368635403,0.16963816,88301.0,88268.0,0.05674697]
[1731368635693,0.0469,88306.0,88278.0,0.16963816]
[1731368635920,0.16963816,88293.0,88270.0,0.05632139]
[1731368636093,0.16963816,88302.0,88271.0,0.11422305]
[1731368636294,0.16963816,88302.0,88272.0,0.05652632]
[1731368636295,0.16963816,88292.0,88272.0,0.05652632]
[1731368636502,0.082,88291.0,88274.0,0.05676911]
[1731368636720,0.082,88291.0,88263.0,0.004523]
[1731368636721,0.082,88291.0,88276.0,0.05691019]
[1731368636931,0.0471,88290.0,88264.0,0.05679825]
[1731368637491,0.0471,88290.0,88265.0,0.11648862]
[1731368638611,0.0471,88290.0,88263.0,0.004523]
[1731368638612,0.0795,88272.0,88263.0,0.004523]
[1731368638747,0.0471,88271.0,88264.0,0.11422305]
[1731368639201,0.1246,88290.0,88265.0,0.00226572]
[1731368639368,0.16963816,88277.0,88266.0,0.11422305]
[1731368639580,0.002,88289.0,88266.0,0.11422305]
[1731368639788,0.16963816,88281.0,88266.0,0.11422305]
[1731368640447,0.11422305,88278.0,88267.0,0.03121793]
[1731368640657,0.11422305,88278.0,88260.0,0.0008547]
[1731368640658,0.0459,88269.0,88260.0,0.0008547]
[1731368640940,0.002,88268.0,88260.0,0.0008547]
[1731368641141,0.002,88268.0,88263.0,0.004522]
[1731368641558,0.002,88268.0,88260.0,0.0008547]
[1731368642131,0.682,88267.0,88260.0,0.0008547]
[1731368642348,0.002,88266.0,88260.0,0.0008547]
[1731368642744,0.21903816,88263.0,88242.0,0.0008541]
[1731368642944,0.21903816,88263.0,88253.0,0.0010606]
[1731368642945,0.43334394,88254.0,88253.0,0.0010606]
[1731368643148,0.1262,88254.0,88253.0,0.0010606]
[1731368643793,0.1282,88254.0,88253.0,0.0010606]
[1731368644249,0.005,88248.0,88247.0,0.03798494]
[1731368644502,0.12122305,88248.0,88247.0,0.03798494]
[1731368644710,0.24312305,88248.0,88242.0,0.0008541]
[1731368644912,0.30214394,88245.0,88242.0,0.0008541]
[1731368645133,0.11622305,88244.0,88242.0,0.0008541]
[1731368645577,0.11622305,88244.0,88200.0,0.00282038]
[1731368645578,0.005,88232.0,88200.0,0.00282038]
[1731368645803,0.002,88244.0,88200.0,0.00282038]
[1731368645804,0.34774394,88219.0,88215.0,0.05]
[1731368646025,0.0456,88219.0,88215.0,0.025]
[1731368647773,0.54226699,88219.0,88215.0,0.025]
[1731368648000,0.002,88218.0,88215.0,0.025]
[1731368648207,0.1259,88219.0,88215.0,0.025]
[1731368648411,0.002,88218.0,88215.0,0.025]
[1731368648657,0.16963816,88216.0,88215.0,0.025]
[1731368648878,0.11622305,88216.0,88215.0,0.025]
[1731368649985,0.005,88206.0,88200.0,0.0008541]
[1731368650296,0.005,88125.0,88059.0,0.64416173]
[1731368650420,0.0453,88151.0,88122.0,0.01178614]
[1731368650624,0.0803,88161.0,88122.0,0.01178614]
[1731368650625,0.07947358,88161.0,88122.0,0.01178614]
[1731368650832,0.04076421,88170.0,88135.0,0.005]
[1731368651028,0.005,88191.0,88144.0,0.68031839]
[1731368651188,0.005,88173.0,88139.0,0.05600133]
[1731368651398,0.005,88176.0,88158.0,0.68031839]
[1731368651600,0.005,88176.0,88159.0,0.11422305]
[1731368651802,0.005,88176.0,88159.0,0.28419779]
[1731368652039,0.005,88176.0,88159.0,0.11422305]
[1731368652240,0.005,88172.0,88159.0,0.11422305]
[1731368652608,0.005,88172.0,88167.0,0.68031839]
[1731368652843,0.005,88172.0,88149.0,0.68031839]
[1731368652844,0.005,88172.0,88150.0,0.05616714]
[1731368653056,0.005,88159.0,88151.0,0.68031839]
[1731368653280,0.005,88158.0,88151.0,0.68031839]
[1731368653922,0.005,88170.0,88151.0,0.68031839]
[1731368654155,0.005,88165.0,88153.0,0.05647895]
[1731368654283,0.005,88165.0,88154.0,0.00226848]
[1731368654685,0.00226848,88164.0,88155.0,0.11422305]
[1731368654908,0.005,88161.0,88144.0,0.73643335]
[1731368655120,0.005,88161.0,88136.0,0.005]
[1731368655121,0.005,88147.0,88136.0,0.005]
[1731368655349,0.01,88141.0,88136.0,0.68031839]
[1731368655519,0.005,88140.0,88126.0,0.0008549]
[1731368655654,0.00367993,88141.0,88127.0,0.00226922]
[1731368656068,0.00367993,88141.0,88126.0,0.0008549]
[1731368656297,0.00367993,88146.0,88128.0,0.005]
[1731368656508,0.0031911,88149.0,88129.0,0.17309718]
[1731368656735,0.00545958,88157.0,88129.0,0.17309718]
[1731368656936,0.00545958,88165.0,88136.0,0.17016835]
[1731368657145,0.0031911,88161.0,88138.0,0.11422305]
[1731368657359,0.00226848,88160.0,88139.0,0.17016835]
[1731368657604,0.00226848,88162.0,88141.0,0.05600597]
[1731368657931,0.00226848,88162.0,88143.0,0.05617203]
[1731368658159,0.0031911,88163.0,88148.0,0.17016835]
[1731368658346,0.0031911,88173.0,88149.0,0.11649162]
[1731368658479,0.0031911,88171.0,88150.0,0.05647564]
[1731368658669,0.0031911,88169.0,88152.0,0.05639503]
[1731368658882,0.0031911,88171.0,88154.0,0.05619478]
[1731368659092,0.00226848,88174.0,88155.0,0.11422305]
[1731368659093,0.0031911,88172.0,88155.0,0.11422305]
[1731368659319,0.0031911,88171.0,88155.0,0.11422305]
[1731368659517,0.0458,88175.0,88155.0,0.11422305]
[1731368659518,0.00226848,88175.0,88157.0,0.17016835]
[1731368659739,0.0031911,88179.0,88154.0,0.05619478]
[1731368659740,0.0031911,88173.0,88158.0,0.11422305]
[1731368659950,0.21776835,88192.0,88158.0,0.11422305]
[1731368659951,0.0031911,88177.0,88159.0,0.17016835]
[1731368660179,0.0031911,88173.0,88159.0,0.17016835]
[1731368660388,0.0031911,88179.0,88160.0,0.11422305]
[1731368660585,0.0031911,88179.0,88160.0,0.1164914]
[1731368660790,0.17016835,88168.0,88151.0,0.05646045]
[1731368660998,0.00226848,88167.0,88161.0,0.17016835]
[1731368661227,0.0031911,88172.0,88152.0,0.2843914]
[1731368661425,0.00226848,88186.0,88152.0,0.2843914]
[1731368661426,0.0031911,88176.0,88162.0,0.17016835]
[1731368661636,0.0031911,88177.0,88163.0,0.11422305]
[1731368661843,0.0031911,88181.0,88164.0,0.11422305]
[1731368662043,0.0031911,88181.0,88165.0,0.17016835]
[1731368662251,0.00226848,88180.0,88153.0,0.0569249]
[1731368662474,0.00226848,88180.0,88163.0,0.17016835]
[1731368662700,0.00226848,88180.0,88154.0,0.11422305]
[1731368662701,0.00545958,88180.0,88154.0,0.11422305]
[1731368662952,0.0031911,88173.0,88162.0,0.17016835]
[1731368663156,0.0031911,88173.0,88152.0,0.17016835]
[1731368663432,0.11422305,88172.0,88152.0,0.17016835]
[1731368663643,0.0031911,88173.0,88161.0,0.17016835]
[1731368663854,0.0031911,88173.0,88162.0,0.11422305]
[1731368663988,0.00226848,88187.0,88163.0,0.05643438]
[1731368664221,0.0031911,88185.0,88164.0,0.11422305]
[1731368664426,0.00226848,88191.0,88165.0,0.00226804]
[1731368664609,0.17016835,88190.0,88166.0,0.11422305]
[1731368664825,0.17016835,88190.0,88163.0,0.05643438]
[1731368664826,0.17016835,88173.0,88167.0,0.00226804]
[1731368665057,0.0031911,88185.0,88169.0,0.17016835]
[1731368665058,0.00226848,88183.0,88169.0,0.17016835]
[1731368665259,0.00226848,88184.0,88169.0,0.11422305]
[1731368666368,0.00226848,88184.0,88170.0,0.05645577]
[1731368666573,0.0031911,88185.0,88174.0,0.22661385]
[1731368666781,0.682,88188.0,88176.0,0.0565802]
[1731368666922,0.682,88188.0,88177.0,0.17084211]
[1731368667122,0.682,88188.0,88179.0,0.05672304]
[1731368667326,0.682,88188.0,88181.0,0.0560584]
[1731368667537,0.682,88188.0,88184.0,0.17016835]
[1731368667747,0.0031911,88199.0,88186.0,0.05680727]
[1731368667973,0.17016835,88198.0,88187.0,0.11649068]
[1731368668168,0.00226848,88197.0,88169.0,0.0567845]
[1731368668366,0.00226848,88197.0,88187.0,0.17016835]
[1731368668591,0.00226848,88197.0,88179.0,0.05672304]
[1731368668796,0.00226848,88197.0,88178.0,0.17016835]
[1731368668797,0.0031911,88193.0,88178.0,0.17016835]
[1731368669151,0.0031911,88191.0,88179.0,0.17016835]
[1731368669356,0.0031911,88189.0,88170.0,0.11422305]
[1731368669672,0.0031911,88189.0,88177.0,0.17016835]
[1731368669892,0.0031911,88189.0,88171.0,0.05657371]
[1731368670117,0.0031911,88189.0,88172.0,0.11422305]
[1731368670333,0.17016835,88188.0,88172.0,0.11422305]
[1731368670531,0.0031911,88189.0,88172.0,0.11422305]
[1731368670735,0.0031911,88193.0,88172.0,0.11422305]
[1731368670937,0.0031911,88189.0,88172.0,0.11422305]
[1731368671164,0.0031911,88193.0,88177.0,0.17016835]
[1731368671398,0.0031911,88189.0,88177.0,0.22678741]
[1731368671594,0.0031911,88189.0,88172.0,0.11649111]
[1731368671595,0.0031911,88189.0,88172.0,0.11422305]
[1731368671811,0.0031911,88189.0,88179.0,0.17016835]
[1731368672025,0.0031911,88193.0,88176.0,0.05884816]
[1731368672248,0.0031911,88189.0,88177.0,0.22678741]
[1731368672492,0.0031911,88189.0,88177.0,0.17016835]
[1731368672974,0.682,88198.0,88179.0,0.05672304]
[1731368673178,0.16668601,88197.0,88181.0,0.0560584]
[1731368673417,0.16668601,88197.0,88168.0,0.17516835]
[1731368673418,0.0031911,88193.0,88183.0,0.05693875]
[1731368673648,0.0031911,88193.0,88168.0,0.17016835]
[1731368673832,0.0031911,88193.0,88180.0,0.17016835]
[1731368674037,0.0031911,88193.0,88170.0,0.05603267]
[1731368674162,0.0031911,88193.0,88180.0,0.17016835]
[1731368674364,0.00717098,88199.0,88171.0,0.11649094]
[1731368674560,0.17016835,88198.0,88178.0,0.05637088]
[1731368674761,0.0031911,88193.0,88180.0,0.05626843]
[1731368675183,0.0031911,88193.0,88179.0,0.11422305]
[1731368675407,0.0031911,88193.0,88181.0,0.0322155]
[1731368675613,0.0031911,88193.0,88179.0,0.11422305]
[1731368675818,0.0031911,88193.0,88180.0,0.17016835]
[1731368676197,0.0031911,88193.0,88170.0,0.05603267]
[1731368676396,0.00397988,88199.0,88158.0,0.17016835]
[1731368676397,0.0031911,88186.0,88171.0,0.2843914]
[1731368677581,0.0031911,88186.0,88171.0,0.34096511]
[1731368677789,0.0031911,88186.0,88172.0,0.00226802]
[1731368678047,0.0031911,88186.0,88173.0,0.11422305]
[1731368678241,0.0031911,88193.0,88181.0,0.17016835]
[1731368678478,0.17187975,88199.0,88183.0,0.05693875]
[1731368678689,0.17187975,88199.0,88171.0,0.17016835]
[1731368678690,0.0017114,88199.0,88185.0,0.17120902]
[1731368678915,0.0017114,88199.0,88188.0,0.11422305]
[1731368679145,0.0017114,88199.0,88193.0,0.023]
[1731368679378,0.0017114,88199.0,88193.0,0.028]
[1731368679597,0.0017114,88199.0,88196.0,0.11422305]
[1731368682147,0.0017114,88199.0,88196.0,0.11649011]
[1731368682533,0.17016835,88234.0,88208.0,0.023]
[1731368682762,0.17016835,88218.0,88212.0,0.11422305]
[1731368682924,0.17016835,88234.0,88213.0,0.11422305]
[1731368683213,0.17016835,88234.0,88218.0,0.0565566]
[1731368683329,0.17016835,88234.0,88219.0,0.11422305]
[1731368683732,0.0034624,88236.0,88220.0,0.056253]
[1731368683964,0.0034624,88236.0,88222.0,0.05650297]